[Event "Titled Tuesday Blitz January 03 Late 2023"]
[White "Manukyan, Sargis A."]
[Black "Mathur, Rithwik"]
[WhiteFideId "13303970"]
[BlackFideId "30913667"]
[WhiteElo "2158"]
[BlackElo "2111"]
[Result "1-0"]
[Round "01"]
[TimeControl "180+2"]
[Date "2023.01.03"]
[WhiteClock "0:00:20"]
[BlackClock "0:00:02"]

1. d4 {[%clk 0:02:59]}  Nf6 {[%clk 0:02:58]} 2. c4 {[%clk 0:02:59]}  e6 {[%clk 0:02:58]} 3. Nc3 {[%clk 0:02:59]}  d5 {[%clk 0:02:59]} 4. Nf3 {[%clk 0:02:59]}  c5 {[%clk 0:02:57]} 5. cxd5 {[%clk 0:02:59]}  Nxd5 {[%clk 0:02:58]} 6. e4 {[%clk 0:02:59]}  Nxc3 {[%clk 0:02:59]} 7. bxc3 {[%clk 0:03:00]}  cxd4 {[%clk 0:03:00]} 8. cxd4 {[%clk 0:03:00]}  Bb4+ {[%clk 0:03:00]} 9. Bd2 {[%clk 0:03:01]}  Bxd2+ {[%clk 0:03:01]} 10. Qxd2 {[%clk 0:03:02]}  O-O {[%clk 0:03:01]} 11. Bc4 {[%clk 0:03:03]}  Nd7 {[%clk 0:03:01]} 12. O-O {[%clk 0:03:04]}  b6 {[%clk 0:03:01]} 13. Rfe1 {[%clk 0:03:01]}  Bb7 {[%clk 0:03:01]} 14. Rad1 {[%clk 0:03:01]}  Rc8 {[%clk 0:03:01]} 15. Bb3 {[%clk 0:03:02]}  Nf6 {[%clk 0:02:56]} 16. Qf4 {[%clk 0:03:01]}  h6 {[%clk 0:02:57]} 17. h3 {[%clk 0:03:02]}  Nh5 {[%clk 0:02:53]} 18. Qh2 {[%clk 0:02:53]}  Nf6 {[%clk 0:02:53]} 19. Qf4 {[%clk 0:02:50]}  Nh5 {[%clk 0:02:53]} 20. Qe3 {[%clk 0:02:49]}  Nf6 {[%clk 0:02:50]} 21. Qd3 {[%clk 0:02:40]}  Qc7 {[%clk 0:02:32]} 22. Ne5 {[%clk 0:02:37]}  Rfd8 {[%clk 0:02:31]} 23. Ng4 {[%clk 0:02:32]}  Nxg4 {[%clk 0:02:26]} 24. hxg4 {[%clk 0:02:32]}  Qc3 {[%clk 0:02:25]} 25. f3 {[%clk 0:02:20]}  Rd7 {[%clk 0:02:12]} 26. Re3 {[%clk 0:02:16]}  Qxd3 {[%clk 0:02:01]} 27. Rexd3 {[%clk 0:02:17]}  b5 {[%clk 0:01:55]} 28. Kf2 {[%clk 0:02:10]}  a6 {[%clk 0:01:53]} 29. Ke3 {[%clk 0:02:09]}  Kf8 {[%clk 0:01:53]} 30. a4 {[%clk 0:02:08]}  Ke7 {[%clk 0:01:50]} 31. axb5 {[%clk 0:02:08]}  axb5 {[%clk 0:01:51]} 32. d5 {[%clk 0:02:06]}  exd5 {[%clk 0:01:50]} 33. Bxd5 {[%clk 0:02:07]}  Bxd5 {[%clk 0:01:48]} 34. Rxd5 {[%clk 0:02:08]}  Rc3+ {[%clk 0:01:44]} 35. Kf4 {[%clk 0:02:03]}  Rxd5 {[%clk 0:01:41]} 36. Rxd5 {[%clk 0:02:04]}  Rc2 {[%clk 0:01:40]} 37. Re5+ {[%clk 0:01:54]}  Kf6 {[%clk 0:01:38]} 38. Rf5+ {[%clk 0:01:52]}  Ke7 {[%clk 0:01:36]} 39. Rxb5 {[%clk 0:01:51]}  Rxg2 {[%clk 0:01:36]} 40. Ke5 {[%clk 0:01:45]}  Rd2 {[%clk 0:01:32]} 41. Rb7+ {[%clk 0:01:44]}  Rd7 {[%clk 0:01:29]} 42. Rb8 {[%clk 0:01:43]}  f6+ {[%clk 0:01:20]} 43. Kf5 {[%clk 0:01:41]}  Kf7 {[%clk 0:01:19]} 44. Rb3 {[%clk 0:01:34]}  Re7 {[%clk 0:01:16]} 45. Kf4 {[%clk 0:01:25]}  Rd7 {[%clk 0:01:09]} 46. Ra3 {[%clk 0:01:24]}  Rc7 {[%clk 0:01:09]} 47. Ke3 {[%clk 0:01:19]}  Rd7 {[%clk 0:01:06]} 48. Rc3 {[%clk 0:01:19]}  Rb7 {[%clk 0:01:04]} 49. f4 {[%clk 0:01:17]}  Rd7 {[%clk 0:01:00]} 50. Rc5 {[%clk 0:01:11]}  Ra7 {[%clk 0:00:56]} 51. Rc3 {[%clk 0:01:03]}  Rb7 {[%clk 0:00:47]} 52. Kd4 {[%clk 0:01:02]}  Rb4+ {[%clk 0:00:43]} 53. Kd5 {[%clk 0:01:01]}  Rb5+ {[%clk 0:00:41]} 54. Kd6 {[%clk 0:01:01]}  Rb6+ {[%clk 0:00:39]} 55. Kd7 {[%clk 0:00:57]}  Rb4 {[%clk 0:00:33]} 56. Re3 {[%clk 0:00:54]}  Rd4+ {[%clk 0:00:33]} 57. Kc6 {[%clk 0:00:53]}  g6 {[%clk 0:00:31]} 58. Kc5 {[%clk 0:00:51]}  Rd1 {[%clk 0:00:29]} 59. Ra3 {[%clk 0:00:42]}  Rc1+ {[%clk 0:00:19]} 60. Kd4 {[%clk 0:00:37]}  Rd1+ {[%clk 0:00:17]} 61. Ke3 {[%clk 0:00:35]}  Rd7 {[%clk 0:00:15]} 62. Ra8 {[%clk 0:00:31]}  h5 {[%clk 0:00:12]} 63. gxh5 {[%clk 0:00:27]}  gxh5 {[%clk 0:00:13]} 64. Rh8 {[%clk 0:00:27]}  Kg6 {[%clk 0:00:13]} 65. f5+ {[%clk 0:00:22]}  Kg5 {[%clk 0:00:07]} 66. Rg8+ {[%clk 0:00:22]}  Kh4 {[%clk 0:00:02]} 67. Rg6 {[%clk 0:00:20]} 1-0


[Site "https://www.chess.com"]

[Event "Titled Tuesday Blitz January 03 Late 2023"]
[White "Klose, Eli"]
[Black "Fernandez Hernandez, Gerardo"]
[WhiteFideId "16242955"]
[BlackFideId "2207400"]
[WhiteElo "1519"]
[BlackElo "2181"]
[Result "0-1"]
[Round "01"]
[TimeControl "180+2"]
[Date "2023.01.03"]
[WhiteClock "0:00:08"]
[BlackClock "0:00:10"]

1. e4 {[%clk 0:02:57]}  e6 {[%clk 0:02:59]} 2. d4 {[%clk 0:02:52]}  d5 {[%clk 0:02:59]} 3. Nc3 {[%clk 0:02:52]}  Nc6 {[%clk 0:02:59]} 4. Nf3 {[%clk 0:02:49]}  Nf6 {[%clk 0:02:59]} 5. e5 {[%clk 0:02:45]}  Ne4 {[%clk 0:02:59]} 6. Bb5 {[%clk 0:02:43]}  Bd7 {[%clk 0:02:50]} 7. Bd3 {[%clk 0:02:35]}  Bb4 {[%clk 0:02:47]} 8. Bd2 {[%clk 0:02:33]}  Nxd2 {[%clk 0:02:47]} 9. Qxd2 {[%clk 0:02:33]}  f6 {[%clk 0:02:47]} 10. a3 {[%clk 0:02:27]}  Bxc3 {[%clk 0:02:44]} 11. bxc3 {[%clk 0:02:27]}  fxe5 {[%clk 0:02:44]} 12. Nxe5 {[%clk 0:02:27]}  Nxe5 {[%clk 0:02:32]} 13. dxe5 {[%clk 0:02:28]}  O-O {[%clk 0:02:31]} 14. O-O {[%clk 0:02:26]}  c5 {[%clk 0:02:18]} 15. f4 {[%clk 0:02:17]}  c4 {[%clk 0:02:13]} 16. Be2 {[%clk 0:02:15]}  Be8 {[%clk 0:02:13]} 17. Bg4 {[%clk 0:02:12]}  Kh8 {[%clk 0:02:12]} 18. Qd4 {[%clk 0:02:08]}  Qe7 {[%clk 0:02:03]} 19. a4 {[%clk 0:02:02]}  Bg6 {[%clk 0:02:00]} 20. Ra2 {[%clk 0:01:59]}  h5 {[%clk 0:01:45]} 21. Be2 {[%clk 0:01:51]}  b6 {[%clk 0:01:21]} 22. a5 {[%clk 0:01:49]}  Qc5 {[%clk 0:01:20]} 23. g3 {[%clk 0:01:37]}  Qxd4+ {[%clk 0:01:18]} 24. cxd4 {[%clk 0:01:38]}  b5 {[%clk 0:01:05]} 25. a6 {[%clk 0:01:37]}  b4 {[%clk 0:01:01]} 26. Rb2 {[%clk 0:01:30]}  Rab8 {[%clk 0:00:59]} 27. Ra1 {[%clk 0:01:28]}  Rb6 {[%clk 0:00:57]} 28. Kf2 {[%clk 0:01:27]}  Rc8 {[%clk 0:00:42]} 29. Ke3 {[%clk 0:01:25]}  c3 {[%clk 0:00:40]} 30. Rba2 {[%clk 0:01:24]}  b3 {[%clk 0:00:36]} 31. cxb3 {[%clk 0:01:21]}  c2 {[%clk 0:00:34]} 32. Rc1 {[%clk 0:01:19]}  Rxb3+ {[%clk 0:00:34]} 33. Kd2 {[%clk 0:01:20]}  Rb1 {[%clk 0:00:33]} 34. Ra1 {[%clk 0:01:11]}  Rcb8 {[%clk 0:00:32]} 35. Bd1 {[%clk 0:00:37]}  Rxa1 {[%clk 0:00:23]} 36. Rxa1 {[%clk 0:00:36]}  Rb1 {[%clk 0:00:17]} 37. Bxc2 {[%clk 0:00:32]}  Rxa1 {[%clk 0:00:17]} 38. Bxg6 {[%clk 0:00:31]}  Rxa6 {[%clk 0:00:16]} 39. Bf7 {[%clk 0:00:20]}  Rb6 {[%clk 0:00:16]} 40. f5 {[%clk 0:00:20]}  exf5 {[%clk 0:00:11]} 41. Bxd5 {[%clk 0:00:17]}  g6 {[%clk 0:00:09]} 42. e6 {[%clk 0:00:17]}  Kg7 {[%clk 0:00:09]} 43. e7 {[%clk 0:00:17]}  Rb8 {[%clk 0:00:09]} 44. Bc6 {[%clk 0:00:08]}  Kf7 {[%clk 0:00:10]} 45. d5 {[%clk 0:00:04]}  Kxe7 {[%clk 0:00:09]} 46. Kd3 {[%clk 0:00:05]}  Kd6 {[%clk 0:00:09]} 47. Ke3 {[%clk 0:00:05]}  a5 {[%clk 0:00:10]} 48. Kf4 {[%clk 0:00:06]}  a4 {[%clk 0:00:08]} 49. Bxa4 {[%clk 0:00:05]}  Rb4+ {[%clk 0:00:07]} 50. Kg5 {[%clk 0:00:05]}  Rxa4 {[%clk 0:00:07]} 51. Kxg6 {[%clk 0:00:06]}  Kxd5 {[%clk 0:00:07]} 52. Kxh5 {[%clk 0:00:06]}  Ke5 {[%clk 0:00:07]} 53. h4 {[%clk 0:00:05]}  Ra1 {[%clk 0:00:06]} 54. Kg5 {[%clk 0:00:03]}  Rg1 {[%clk 0:00:06]} 55. Kh6 {[%clk 0:00:03]}  Rxg3 {[%clk 0:00:06]} 56. h5 {[%clk 0:00:04]}  f4 {[%clk 0:00:06]} 57. Kh7 {[%clk 0:00:04]}  f3 {[%clk 0:00:07]} 58. h6 {[%clk 0:00:05]}  Rh3 {[%clk 0:00:07]} 59. Kh8 {[%clk 0:00:05]}  Rxh6+ {[%clk 0:00:07]} 60. Kg7 {[%clk 0:00:06]}  Rf6 {[%clk 0:00:07]} 61. Kh7 {[%clk 0:00:06]}  f2 {[%clk 0:00:08]} 62. Kg7 {[%clk 0:00:07]}  f1=Q {[%clk 0:00:09]} 63. Kh7 {[%clk 0:00:07]}  Qg2 {[%clk 0:00:09]} 64. Kh8 {[%clk 0:00:08]}  Rf3 {[%clk 0:00:09]} 65. Kh7 {[%clk 0:00:08]}  Rh3# {[%clk 0:00:10]} 0-1


[Site "https://www.chess.com"]

[Event "Titled Tuesday Blitz January 03 Late 2023"]
[White "Guerra Rivera, Salvador"]
[Black "Souza, Gustavo Horokoski De"]
[WhiteFideId "32096542"]
[BlackFideId "2146584"]
[WhiteElo "2290"]
[BlackElo "1943"]
[Result "1-0"]
[Round "01"]
[TimeControl "180+2"]
[Date "2023.01.03"]
[WhiteClock "0:02:11"]
[BlackClock "0:00:58"]

1. e4 {[%clk 0:03:00]}  e6 {[%clk 0:02:55]} 2. d4 {[%clk 0:02:58]}  d5 {[%clk 0:02:55]} 3. Nd2 {[%clk 0:02:56]}  Nc6 {[%clk 0:02:54]} 4. Ngf3 {[%clk 0:02:50]}  Nf6 {[%clk 0:02:53]} 5. e5 {[%clk 0:02:51]}  Nd7 {[%clk 0:02:54]} 6. Bd3 {[%clk 0:02:51]}  f6 {[%clk 0:02:54]} 7. Ng5 {[%clk 0:02:50]}  fxg5 {[%clk 0:02:10]} 8. Qh5+ {[%clk 0:02:50]}  Ke7 {[%clk 0:02:01]} 9. Nf3 {[%clk 0:02:50]}  Nf6 {[%clk 0:02:00]} 10. Bxg5 {[%clk 0:02:49]}  Qe8 {[%clk 0:01:54]} 11. exf6+ {[%clk 0:02:46]}  gxf6 {[%clk 0:01:44]} 12. Bxf6+ {[%clk 0:02:47]}  Kxf6 {[%clk 0:01:41]} 13. Qxe8 {[%clk 0:02:47]}  Bb4+ {[%clk 0:01:40]} 14. c3 {[%clk 0:02:46]}  Bxc3+ {[%clk 0:01:40]} 15. bxc3 {[%clk 0:02:46]}  Rxe8 {[%clk 0:01:40]} 16. Bxh7 {[%clk 0:02:44]}  e5 {[%clk 0:01:38]} 17. dxe5+ {[%clk 0:02:32]}  Nxe5 {[%clk 0:01:38]} 18. Nxe5 {[%clk 0:02:33]}  Rxe5+ {[%clk 0:01:38]} 19. Kd2 {[%clk 0:02:33]}  Bf5 {[%clk 0:01:32]} 20. Bxf5 {[%clk 0:02:33]}  Kxf5 {[%clk 0:01:32]} 21. Rab1 {[%clk 0:02:29]}  b6 {[%clk 0:01:31]} 22. h4 {[%clk 0:02:26]}  Rae8 {[%clk 0:01:28]} 23. Rbe1 {[%clk 0:02:25]}  Rxe1 {[%clk 0:01:26]} 24. Rxe1 {[%clk 0:02:26]}  Rg8 {[%clk 0:01:12]} 25. g3 {[%clk 0:02:21]}  Rg7 {[%clk 0:01:12]} 26. h5 {[%clk 0:02:15]}  Rh7 {[%clk 0:01:06]} 27. f3 {[%clk 0:02:11]}  Kg5 {[%clk 0:01:02]} 28. Re5+ {[%clk 0:02:11]}  Kf6 {[%clk 0:00:59]} 29. Rxd5 {[%clk 0:02:11]}  Rg7 {[%clk 0:00:58]} 30. g4 {[%clk 0:02:11]}  c6 {[%clk 0:00:58]} 31. Rd6+ {[%clk 0:02:11]} 1-0


[Site "https://www.chess.com"]

[Event "Titled Tuesday Blitz January 03 Late 2023"]
[White "Kozlov, Gennady"]
[Black "Graham, Nathaniel"]
[WhiteFideId "4191668"]
[BlackFideId "2007983"]
[WhiteElo "2401"]
[BlackElo "2262"]
[Result "0-1"]
[Round "01"]
[TimeControl "180+2"]
[Date "2023.01.03"]
[WhiteClock "0:01:15"]
[BlackClock "0:00:06"]

1. d4 {[%clk 0:02:58]}  d5 {[%clk 0:02:59]} 2. c4 {[%clk 0:02:59]}  c6 {[%clk 0:02:59]} 3. Nc3 {[%clk 0:02:59]}  dxc4 {[%clk 0:03:00]} 4. e3 {[%clk 0:02:56]}  b5 {[%clk 0:02:59]} 5. Nxb5 {[%clk 0:02:55]}  cxb5 {[%clk 0:03:00]} 6. Qf3 {[%clk 0:02:55]}  Nc6 {[%clk 0:02:59]} 7. Qxc6+ {[%clk 0:02:54]}  Bd7 {[%clk 0:02:59]} 8. Qf3 {[%clk 0:02:54]}  e5 {[%clk 0:02:59]} 9. Bd2 {[%clk 0:02:53]}  exd4 {[%clk 0:02:53]} 10. exd4 {[%clk 0:02:53]}  Nf6 {[%clk 0:02:51]} 11. Ne2 {[%clk 0:02:48]}  Bd6 {[%clk 0:02:43]} 12. Bf4 {[%clk 0:02:46]}  Bb4+ {[%clk 0:02:34]} 13. Nc3 {[%clk 0:02:46]}  O-O {[%clk 0:02:32]} 14. Be2 {[%clk 0:02:46]}  Bg4 {[%clk 0:02:23]} 15. Qe3 {[%clk 0:02:42]}  Re8 {[%clk 0:02:20]} 16. Be5 {[%clk 0:02:42]}  Nd5 {[%clk 0:02:09]} 17. Qg3 {[%clk 0:02:42]}  Rxe5 {[%clk 0:01:21]} 18. dxe5 {[%clk 0:02:31]}  Bxe2 {[%clk 0:01:20]} 19. Kxe2 {[%clk 0:02:30]}  Bxc3 {[%clk 0:01:00]} 20. bxc3 {[%clk 0:02:30]}  Qa5 {[%clk 0:01:00]} 21. Rhe1 {[%clk 0:02:18]}  Nxc3+ {[%clk 0:00:56]} 22. Kf1 {[%clk 0:02:18]}  b4 {[%clk 0:00:47]} 23. e6 {[%clk 0:02:14]}  fxe6 {[%clk 0:00:43]} 24. Rxe6 {[%clk 0:02:14]}  Qd5 {[%clk 0:00:36]} 25. Re7 {[%clk 0:02:10]}  Qd4 {[%clk 0:00:30]} 26. Rae1 {[%clk 0:02:01]}  Rd8 {[%clk 0:00:24]} 27. Re8+ {[%clk 0:01:55]}  Rxe8 {[%clk 0:00:21]} 28. Rxe8+ {[%clk 0:01:56]}  Kf7 {[%clk 0:00:22]} 29. Qe3 {[%clk 0:01:40]}  Qxe3 {[%clk 0:00:10]} 30. Rxe3 {[%clk 0:01:41]}  Nxa2 {[%clk 0:00:10]} 31. Ke1 {[%clk 0:01:39]}  c3 {[%clk 0:00:05]} 32. Rf3+ {[%clk 0:01:31]}  Kg8 {[%clk 0:00:04]} 33. Kd1 {[%clk 0:01:14]}  b3 {[%clk 0:00:04]} 34. Rxc3 {[%clk 0:01:15]}  Nxc3+ {[%clk 0:00:04]} 35. Kc1 {[%clk 0:01:15]}  Ne4 {[%clk 0:00:05]} 36. f3 {[%clk 0:01:15]}  Nc5 {[%clk 0:00:05]} 37. Kb2 {[%clk 0:01:15]}  a5 {[%clk 0:00:05]} 38. Ka3 {[%clk 0:01:15]}  a4 {[%clk 0:00:06]} 0-1


[Site "https://www.chess.com"]

[Event "Titled Tuesday Blitz January 03 Late 2023"]
[White "Harish, Neeraj"]
[Black "Ehlvest, Jaan"]
[WhiteFideId "30958130"]
[BlackFideId "4500016"]
[WhiteElo "2232"]
[BlackElo "2530"]
[Result "0-1"]
[Round "01"]
[TimeControl "180+2"]
[Date "2023.01.03"]
[WhiteClock "0:00:04"]
[BlackClock "0:00:35"]

1. e4 {[%clk 0:02:59]}  c5 {[%clk 0:02:56]} 2. Nf3 {[%clk 0:02:58]}  e6 {[%clk 0:02:56]} 3. d4 {[%clk 0:02:58]}  cxd4 {[%clk 0:02:56]} 4. Nxd4 {[%clk 0:02:59]}  Nf6 {[%clk 0:02:55]} 5. Nc3 {[%clk 0:02:59]}  Nc6 {[%clk 0:02:55]} 6. Ndb5 {[%clk 0:02:58]}  Bc5 {[%clk 0:02:54]} 7. Bf4 {[%clk 0:02:52]}  O-O {[%clk 0:02:51]} 8. Bc7 {[%clk 0:02:52]}  Qe7 {[%clk 0:02:51]} 9. Bd6 {[%clk 0:02:52]}  Bxd6 {[%clk 0:02:51]} 10. Qxd6 {[%clk 0:02:52]}  Qd8 {[%clk 0:02:51]} 11. O-O-O {[%clk 0:02:50]}  a6 {[%clk 0:02:46]} 12. Nd4 {[%clk 0:02:50]}  Ne7 {[%clk 0:02:46]} 13. Qg3 {[%clk 0:02:30]}  b5 {[%clk 0:02:42]} 14. e5 {[%clk 0:02:14]}  Nfd5 {[%clk 0:02:38]} 15. Ne4 {[%clk 0:02:06]}  Bb7 {[%clk 0:02:19]} 16. Bd3 {[%clk 0:01:27]}  Qc7 {[%clk 0:01:53]} 17. Nf6+ {[%clk 0:00:48]}  Nxf6 {[%clk 0:01:52]} 18. exf6 {[%clk 0:00:48]}  Qxg3 {[%clk 0:01:51]} 19. Bxh7+ {[%clk 0:00:48]}  Kxh7 {[%clk 0:01:36]} 20. hxg3+ {[%clk 0:00:48]}  Kg8 {[%clk 0:01:20]} 21. fxe7 {[%clk 0:00:47]}  Rfe8 {[%clk 0:01:20]} 22. Nf3 {[%clk 0:00:37]}  Rxe7 {[%clk 0:01:17]} 23. Rh4 {[%clk 0:00:36]}  f6 {[%clk 0:01:15]} 24. b3 {[%clk 0:00:24]}  Rc8 {[%clk 0:01:14]} 25. Kb2 {[%clk 0:00:24]}  Kf7 {[%clk 0:01:12]} 26. Rc1 {[%clk 0:00:16]}  e5 {[%clk 0:01:09]} 27. c4 {[%clk 0:00:15]}  d5 {[%clk 0:01:06]} 28. c5 {[%clk 0:00:14]}  d4 {[%clk 0:01:04]} 29. b4 {[%clk 0:00:11]}  a5 {[%clk 0:01:01]} 30. a3 {[%clk 0:00:11]}  Bd5 {[%clk 0:00:59]} 31. Re1 {[%clk 0:00:11]}  Ra7 {[%clk 0:00:55]} 32. Ra1 {[%clk 0:00:08]}  Rca8 {[%clk 0:00:53]} 33. Rhh1 {[%clk 0:00:06]}  axb4 {[%clk 0:00:47]} 34. axb4 {[%clk 0:00:06]}  Ra2+ {[%clk 0:00:47]} 35. Rxa2 {[%clk 0:00:07]}  Rxa2+ {[%clk 0:00:47]} 36. Kb1 {[%clk 0:00:07]}  Rxf2 {[%clk 0:00:45]} 37. Nh4 {[%clk 0:00:05]}  d3 {[%clk 0:00:39]} 38. Rd1 {[%clk 0:00:05]}  Ba2+ {[%clk 0:00:36]} 39. Kc1 {[%clk 0:00:04]}  Rc2# {[%clk 0:00:35]} 0-1


[Site "https://www.chess.com"]

[Event "Titled Tuesday Blitz January 03 Late 2023"]
[White "Egorov, Evgeny"]
[Black "Wang, Alexander J"]
[WhiteFideId "13700421"]
[BlackFideId "30955270"]
[WhiteElo "2294"]
[BlackElo "1815"]
[Result "1-0"]
[Round "01"]
[TimeControl "180+2"]
[Date "2023.01.03"]
[WhiteClock "0:02:15"]
[BlackClock "0:01:15"]

1. e4 {[%clk 0:03:00]}  c5 {[%clk 0:02:58]} 2. Nc3 {[%clk 0:02:59]}  d6 {[%clk 0:02:53]} 3. Nf3 {[%clk 0:02:59]}  Nf6 {[%clk 0:02:51]} 4. e5 {[%clk 0:02:58]}  dxe5 {[%clk 0:02:49]} 5. Nxe5 {[%clk 0:02:59]}  Nbd7 {[%clk 0:02:47]} 6. d4 {[%clk 0:02:58]}  cxd4 {[%clk 0:02:36]} 7. Qxd4 {[%clk 0:02:57]}  Nxe5 {[%clk 0:02:31]} 8. Qxe5 {[%clk 0:02:56]}  e6 {[%clk 0:02:28]} 9. Bf4 {[%clk 0:02:55]}  Be7 {[%clk 0:02:21]} 10. Bb5+ {[%clk 0:02:53]}  Bd7 {[%clk 0:02:16]} 11. O-O-O {[%clk 0:02:53]}  O-O {[%clk 0:01:34]} 12. Bxd7 {[%clk 0:02:51]}  Nxd7 {[%clk 0:01:33]} 13. Qb5 {[%clk 0:02:51]}  Qe8 {[%clk 0:01:17]} 14. Qxd7 {[%clk 0:02:47]}  Qxd7 {[%clk 0:01:16]} 15. Rxd7 {[%clk 0:02:45]}  Bf6 {[%clk 0:01:17]} 16. Ne4 {[%clk 0:02:40]}  e5 {[%clk 0:01:15]} 17. Nxf6+ {[%clk 0:02:35]}  gxf6 {[%clk 0:01:16]} 18. Bh6 {[%clk 0:02:33]}  Rfd8 {[%clk 0:01:15]} 19. Rhd1 {[%clk 0:02:31]}  Rxd7 {[%clk 0:01:14]} 20. Rxd7 {[%clk 0:02:19]}  b6 {[%clk 0:01:15]} 21. Kd2 {[%clk 0:02:15]} 1-0


[Site "https://www.chess.com"]

[Event "Titled Tuesday Blitz January 03 Late 2023"]
[White "Janaszak, Dawid"]
[Black "Guevara Sanchez, Erick Marvin"]
[WhiteFideId "1119206"]
[BlackFideId "6700136"]
[WhiteElo "2316"]
[BlackElo "2073"]
[Result "1-0"]
[Round "01"]
[TimeControl "180+2"]
[Date "2023.01.03"]
[WhiteClock "0:01:47"]
[BlackClock "0:01:58"]

1. e4 {[%clk 0:02:59]}  c5 {[%clk 0:03:00]} 2. Nc3 {[%clk 0:02:57]}  Nc6 {[%clk 0:03:00]} 3. Bb5 {[%clk 0:02:55]}  Nd4 {[%clk 0:02:58]} 4. Nf3 {[%clk 0:02:56]}  Nxb5 {[%clk 0:02:57]} 5. Nxb5 {[%clk 0:02:57]}  a6 {[%clk 0:02:57]} 6. Nc3 {[%clk 0:02:57]}  e6 {[%clk 0:02:56]} 7. d4 {[%clk 0:02:57]}  cxd4 {[%clk 0:02:55]} 8. Qxd4 {[%clk 0:02:58]}  Ne7 {[%clk 0:02:54]} 9. Bg5 {[%clk 0:02:54]}  f6 {[%clk 0:02:53]} 10. Be3 {[%clk 0:02:51]}  Nc6 {[%clk 0:02:53]} 11. Qd2 {[%clk 0:02:46]}  Be7 {[%clk 0:02:51]} 12. O-O-O {[%clk 0:02:44]}  O-O {[%clk 0:02:50]} 13. Kb1 {[%clk 0:02:28]}  b5 {[%clk 0:02:49]} 14. Nd5 {[%clk 0:02:16]}  exd5 {[%clk 0:02:33]} 15. exd5 {[%clk 0:02:17]}  Ne5 {[%clk 0:02:30]} 16. d6 {[%clk 0:02:15]}  Nxf3 {[%clk 0:02:21]} 17. Qd5+ {[%clk 0:02:14]}  Kh8 {[%clk 0:02:20]} 18. dxe7 {[%clk 0:02:14]}  Qxe7 {[%clk 0:02:21]} 19. Qxa8 {[%clk 0:02:07]}  Ne5 {[%clk 0:02:20]} 20. Qd5 {[%clk 0:02:06]}  Nc4 {[%clk 0:02:15]} 21. Bc5 {[%clk 0:02:01]}  Qd8 {[%clk 0:02:08]} 22. b3 {[%clk 0:01:51]}  Na5 {[%clk 0:02:05]} 23. Bxf8 {[%clk 0:01:49]}  Qxf8 {[%clk 0:02:04]} 24. Qd6 {[%clk 0:01:47]}  Qd8 {[%clk 0:02:01]} 25. Rhe1 {[%clk 0:01:46]}  Nc6 {[%clk 0:01:59]} 26. Qxc6 {[%clk 0:01:46]}  dxc6 {[%clk 0:01:58]} 27. Rxd8# {[%clk 0:01:47]} 1-0


[Site "https://www.chess.com"]

[Event "Titled Tuesday Blitz January 03 Late 2023"]
[White "Bayo Milagro, Alvaro"]
[Black "Mitrovic, Darko R"]
[WhiteFideId "22275240"]
[BlackFideId "927023"]
[WhiteElo "2287"]
[BlackElo "2220"]
[Result "1-0"]
[Round "01"]
[TimeControl "180+2"]
[Date "2023.01.03"]
[WhiteClock "0:01:24"]
[BlackClock "0:00:01"]

1. d4 {[%clk 0:02:53]}  Nf6 {[%clk 0:02:59]} 2. Nf3 {[%clk 0:02:53]}  a6 {[%clk 0:02:58]} 3. c4 {[%clk 0:02:46]}  b5 {[%clk 0:02:58]} 4. Nc3 {[%clk 0:02:42]}  bxc4 {[%clk 0:02:57]} 5. e4 {[%clk 0:02:41]}  d5 {[%clk 0:02:46]} 6. exd5 {[%clk 0:02:41]}  Nxd5 {[%clk 0:02:46]} 7. Bxc4 {[%clk 0:02:42]}  e6 {[%clk 0:02:39]} 8. Ne5 {[%clk 0:02:39]}  c6 {[%clk 0:02:02]} 9. O-O {[%clk 0:02:38]}  Be7 {[%clk 0:01:59]} 10. Bd3 {[%clk 0:02:33]}  O-O {[%clk 0:01:53]} 11. Re1 {[%clk 0:02:30]}  Bb7 {[%clk 0:01:45]} 12. Ne4 {[%clk 0:02:27]}  Nd7 {[%clk 0:01:41]} 13. Qh5 {[%clk 0:02:26]}  N7f6 {[%clk 0:01:28]} 14. Qh3 {[%clk 0:02:23]}  Nxe4 {[%clk 0:01:12]} 15. Rxe4 {[%clk 0:02:16]}  g6 {[%clk 0:00:55]} 16. Bh6 {[%clk 0:02:13]}  c5 {[%clk 0:00:45]} 17. Bxf8 {[%clk 0:02:11]}  Bxf8 {[%clk 0:00:36]} 18. Rh4 {[%clk 0:02:07]}  h5 {[%clk 0:00:19]} 19. Bxg6 {[%clk 0:02:04]}  fxg6 {[%clk 0:00:14]} 20. Qxe6+ {[%clk 0:01:59]}  Kh8 {[%clk 0:00:12]} 21. Nf7+ {[%clk 0:01:55]}  Kg7 {[%clk 0:00:10]} 22. Nxd8 {[%clk 0:01:55]}  Rxd8 {[%clk 0:00:08]} 23. dxc5 {[%clk 0:01:45]}  Bxc5 {[%clk 0:00:08]} 24. Rd1 {[%clk 0:01:42]}  Rd6 {[%clk 0:00:05]} 25. Qe5+ {[%clk 0:01:36]}  Rf6 {[%clk 0:00:04]} 26. Rf4 {[%clk 0:01:26]}  Nxf4 {[%clk 0:00:03]} 27. Rd7+ {[%clk 0:01:26]}  Kh6 {[%clk 0:00:03]} 28. Qxf6 {[%clk 0:01:25]}  Ne2+ {[%clk 0:00:02]} 29. Kf1 {[%clk 0:01:25]}  Bxg2+ {[%clk 0:00:01]} 30. Kxe2 {[%clk 0:01:24]} 1-0


[Site "https://www.chess.com"]

[Event "Titled Tuesday Blitz January 03 Late 2023"]
[White "Curtis, John"]
[Black "Gschnitzer, Adrian"]
[WhiteFideId "3200256"]
[BlackFideId "1270337"]
[WhiteElo "2292"]
[BlackElo "2432"]
[Result "0-1"]
[Round "01"]
[TimeControl "180+2"]
[Date "2023.01.03"]
[WhiteClock "0:00:54"]
[BlackClock "0:01:25"]

1. c4 {[%clk 0:02:56]}  Nf6 {[%clk 0:02:58]} 2. Nf3 {[%clk 0:02:53]}  c5 {[%clk 0:02:58]} 3. g3 {[%clk 0:02:48]}  d5 {[%clk 0:02:57]} 4. cxd5 {[%clk 0:02:45]}  Nxd5 {[%clk 0:02:58]} 5. Bg2 {[%clk 0:02:44]}  Nc6 {[%clk 0:02:55]} 6. O-O {[%clk 0:02:42]}  e5 {[%clk 0:02:54]} 7. Nc3 {[%clk 0:02:35]}  Be6 {[%clk 0:02:52]} 8. Ng5 {[%clk 0:02:25]}  Qxg5 {[%clk 0:02:43]} 9. Nxd5 {[%clk 0:02:23]}  Qd8 {[%clk 0:02:43]} 10. Nc3 {[%clk 0:02:23]}  Rc8 {[%clk 0:02:40]} 11. d3 {[%clk 0:02:20]}  Be7 {[%clk 0:02:39]} 12. b3 {[%clk 0:02:15]}  O-O {[%clk 0:02:37]} 13. Bb2 {[%clk 0:02:14]}  f5 {[%clk 0:02:37]} 14. e4 {[%clk 0:01:46]}  f4 {[%clk 0:02:19]} 15. Nd5 {[%clk 0:01:45]}  Bf6 {[%clk 0:02:03]} 16. gxf4 {[%clk 0:01:41]}  exf4 {[%clk 0:01:57]} 17. Bxf6 {[%clk 0:01:32]}  gxf6 {[%clk 0:01:52]} 18. Nxf4 {[%clk 0:01:31]}  Bd7 {[%clk 0:01:47]} 19. Qh5 {[%clk 0:01:15]}  Ne5 {[%clk 0:01:41]} 20. Qh4 {[%clk 0:01:00]}  b6 {[%clk 0:01:34]} 21. h3 {[%clk 0:00:57]}  f5 {[%clk 0:01:29]} 22. Rae1 {[%clk 0:00:54]}  Qxh4 {[%clk 0:01:25]} 0-1


[Site "https://www.chess.com"]